[Event "84th ESP-ch 2019"]
[Site "Marbella"]
[Date "2019.11.20"]
[Round "5.18"]
[White "Kolotilina, Liudmila"]
[Black "Alsina Leal, Daniel"]
[Result "0-1"]
[ECO "B23"]
[WhiteElo "2242"]
[BlackElo "2467"]
[Annotator "ChessBase"]
[PlyCount "125"]
[EventDate "2019.11.16"]
[EventType "swiss"]
[EventCountry "ESP"]
[SourceTitle "playchess.com"]
[Source "ChessBase"]
[SourceQuality "1"]
[TimeControl "5400+30"]

1. e4 {[%emt 0:00:00]} c5 {[%emt 0:00:00]} 2. Nc3 {[%emt 0:00:00]} d6 {[%emt 0:01:09]} 3. d4 {[%emt 0:00:00]} cxd4 {[%emt 0:00:12]} 4. Qxd4 {[%emt 0:00:00]} Nc6 {[%emt 0:01:38]} 5. Qd2 {[%emt 0:00:00]} Nf6 {[%emt 0:07:51]} 6. b3 {[%emt 0:00:10]} e6 {[%emt 0:06:59]} 7. Bb2 {[%emt 0:00:15]} Be7 {[%emt 0:00:19]} 8. O-O-O {[%emt 0:00:25]} O-O {[%emt 0:02:25]} 9. f4 {[%emt 0:01:36]} a6 {[%emt 0:01:33]} 10. Kb1 {[%emt 0:07:00]} b5 {[%emt 0:01:29]} 11. Bd3 {[%emt 0:02:22]} Qc7 {[%emt 0:04:37]} 12. g4 {[%emt 0:02:09]} Nd7 {[%emt 0:06:14]} 13. Nf3 {[%emt 0:08:11]} Nc5 {[%emt 0:01:15]} 14. g5 {[%emt 0:00:50]} f5 {[%emt 0:26:23]} 15. exf5 {[%emt 0:31:45]} Nxd3 {[%emt 0:00:24]} 16. Qxd3 {[%emt 0:01:05]} Rxf5 {[%emt 0:00:40]} 17. Qe3 {[%emt 0:01:33]} Bf8 {[%emt 0:14:22]} 18. Nh4 {[%emt 0:13:28]} Rc5 {[%emt 0:00:16]} 19. Rd2 {[%emt 0:07:06]} d5 {[%emt 0:08:15]} 20. Ne2 {[%emt 0:00:23]} e5 {[%emt 0:01:37]} 21. fxe5 {[%emt 0:01:22]} d4 {[%emt 0:00:22]} 22. Nxd4 {[%emt 0:01:03]} Rxe5 {[%emt 0:01:48]} 23. Qc3 {[%emt 0:01:04]} Rc5 {[%emt 0:00:55]} 24. Qe3 {[%emt 0:01:36]} Qe7 {[%emt 0:02:42]} 25. Qxe7 {[%emt 0:02:40]} Nxe7 {[%emt 0:01:54]} 26. Nhf3 {[%emt 0:01:42]} Nd5 {[%emt 0:01:31]} 27. Re1 {[%emt 0:02:57]} Nc3+ {[%emt 0:00:40]} 28. Bxc3 {[%emt 0:05:18]} Rxc3 {[%emt 0:00:04]} 29. Re8 {[%emt 0:00:13]} Bb7 {[%emt 0:00:46]} 30. Rxa8 {[%emt 0:00:06]} Bxa8 {[%emt 0:00:04]} 31. Ne5 {[%emt 0:00:39]} Re3 {[%emt 0:01:51]} 32. Ndc6 {[%emt 0:02:33]} Rc3 {[%emt 0:02:06]} 33. Nd4 {[%emt 0:00:39]} Rc5 {[%emt 0:03:30]} 34. Nd7 {[%emt 0:03:44]} Rxg5 {[%emt 0:00:11]} 35. Nxf8 {[%emt 0:00:01]} Rg1+ {[%emt 0:00:14]} 36. Kb2 {[%emt 0:00:02]} Kxf8 {[%emt 0:00:24]} 37. Nxb5 {[%emt 0:00:19]} axb5 {[%emt 0:01:03]} 38. Rd8+ {[%emt 0:00:00]} Ke7 {[%emt 0:00:06]} 39. Rxa8 {[%emt 0:00:01]} Rg2 {[%emt 0:00:43]} 40. h3 {[%emt 0:00:29]} Rh2 {[%emt 0:00:41]} 41. Rb8 {[%emt 0:01:54]} Rxh3 {[%emt 0:00:04]} 42. Rxb5 {[%emt 0:00:01]} Kd6 {[%emt 0:01:10]} 43. a4 {[%emt 0:00:20]} Kc6 {[%emt 0:00:27]} 44. Rg5 {[%emt 0:01:40]} g6 {[%emt 0:00:23]} 45. b4 {[%emt 0:00:39]} Rh5 {[%emt 0:00:32]} 46. Rg3 {[%emt 0:00:19]} Rf5 {[%emt 0:00:21]} 47. Kb3 {[%emt 0:00:41]} g5 {[%emt 0:00:08]} 48. b5+ {[%emt 0:00:15]} Kb7 {[%emt 0:00:29]} 49. Rh3 {[%emt 0:01:47]} Rf7 {[%emt 0:00:04]} 50. Kb4 {[%emt 0:00:37]} g4 {[%emt 0:00:10]} 51. Rh5 {[%emt 0:00:37]} Rg7 {[%emt 0:00:12]} 52. a5 {[%emt 0:01:22]} g3 {[%emt 0:00:04]} 53. a6+ {[%emt 0:00:43]} Kb6 {[%emt 0:02:28]} 54. Rh6+ {[%emt 0:00:08]} Ka7 {[%emt 0:00:07]} 55. Ka5 {[%emt 0:00:56]} g2 {[%emt 0:00:05]} 56. b6+ {[%emt 0:00:33]} Ka8 {[%emt 0:01:18]} 57. Re6 {[%emt 0:00:37]} Rg5+ {[%emt 0:00:15]} 58. Kb4 {[%emt 0:00:10]} Rg8 {[%emt 0:00:11]} 59. Re7 {[%emt 0:00:47]} g1=Q {[%emt 0:00:15]} 60. Ra7+ {[%emt 0:00:04]} Kb8 {[%emt 0:00:04]} 61. Rb7+ {[%emt 0:00:02]} Kc8 {[%emt 0:00:13]} 62. Rc7+ {[%emt 0:00:04]} Kd8 {[%emt 0:00:07]} 63. a7 {[%emt 0:00:09]} 0-1

[Event "84th ESP-ch 2019"]
[Site "Marbella"]
[Date "2019.11.20"]
[Round "5.19"]
[White "Tejedor Fuente, Enrique"]
[Black "Martin Hernandez, Ruben"]
[Result "1-0"]
[ECO "B23"]
[WhiteElo "2457"]
[BlackElo "2206"]
[Annotator "ChessBase"]
[PlyCount "69"]
[EventDate "2019.11.16"]
[EventType "swiss"]
[EventCountry "ESP"]
[SourceTitle "playchess.com"]
[Source "ChessBase"]
[SourceQuality "1"]
[TimeControl "5400+30"]

1. e4 {[%emt 0:00:00]} c5 {[%emt 0:00:11]} 2. Nc3 {[%emt 0:00:00]} e6 {[%emt 0:01:29]} 3. g3 {[%emt 0:00:44]} Nc6 {[%emt 0:01:38]} 4. Bg2 {[%emt 0:00:03]} g6 {[%emt 0:02:20]} 5. d3 {[%emt 0:00:02]} Bg7 {[%emt 0:00:17]} 6. Be3 {[%emt 0:00:14]} d6 {[%emt 0:02:34]} 7. Qd2 {[%emt 0:00:56]} h6 {[%emt 0:00:36]} 8. Nge2 {[%emt 0:06:18]} Nd4 {[%emt 0:01:16]} 9. Nc1 {[%emt 0:02:50]} Ne7 {[%emt 0:01:24]} 10. Nd1 {[%emt 0:00:12]} e5 {[%emt 0:09:49]} 11. O-O {[%emt 0:00:55]} d5 {[%emt 0:07:52]} 12. exd5 {[%emt 0:03:35]} Nxd5 {[%emt 0:00:13]} 13. Nb3 {[%emt 0:00:59]} Nxe3 {[%emt 0:15:42]} 14. Nxe3 {[%emt 0:03:31]} Nxb3 {[%emt 0:13:07]} 15. axb3 {[%emt 0:01:25]} O-O {[%emt 0:02:03]} 16. Qa5 {[%emt 0:00:54]} b6 {[%emt 0:02:48]} 17. Qd2 {[%emt 0:05:48]} Rb8 {[%emt 0:01:43]} 18. Rxa7 {[%emt 0:00:03]} f5 {[%emt 0:00:06]} 19. Nc4 {[%emt 0:02:52]} Bd7 {[%emt 0:11:23]} 20. Re1 {[%emt 0:02:50]} Re8 {[%emt 0:00:05]} 21. b4 {[%emt 0:03:49]} Bb5 {[%emt 0:08:11]} 22. Nxe5 {[%emt 0:04:58]} Rxe5 {[%emt 0:03:40]} 23. Rxe5 {[%emt 0:00:41]} Bxe5 {[%emt 0:00:26]} 24. Qxh6 {[%emt 0:00:05]} Be8 {[%emt 0:00:59]} 25. c4 {[%emt 0:02:03]} Bf7 {[%emt 0:01:54]} 26. Bd5 {[%emt 0:00:59]} Bxd5 {[%emt 0:00:48]} 27. Qxg6+ {[%emt 0:00:01]} Kf8 {[%emt 0:00:14]} 28. Qh6+ {[%emt 0:00:31]} Kg8 {[%emt 0:00:27]} 29. Qh7+ {[%emt 0:13:50]} Kf8 {[%emt 0:02:25]} 30. Rd7 {[%emt 0:02:51]} Qf6 {[%emt 0:05:22]} 31. Rxd5 {[%emt 0:00:13]} cxb4 {[%emt 0:00:20]} 32. d4 {[%emt 0:04:05]} Bxd4 {[%emt 0:00:25]} 33. Rxf5 {[%emt 0:00:06]} Bxb2 {[%emt 0:00:01]} 34. Rxf6+ {[%emt 0:00:24]} Bxf6 {[%emt 0:00:02]} 35. Qc7 {[%emt 0:00:21]} 1-0

[Event "84th ESP-ch 2019"]
[Site "Marbella"]
[Date "2019.11.20"]
[Round "5.20"]
[White "Ladron De Guevara Pinto, Paolo"]
[Black "Rodriguez Reinoso, Victoriano"]
[Result "1-0"]
[ECO "B41"]
[WhiteElo "2442"]
[BlackElo "2204"]
[Annotator "ChessBase"]
[PlyCount "95"]
[EventDate "2019.11.16"]
[EventType "swiss"]
[EventCountry "ESP"]
[SourceTitle "playchess.com"]
[Source "ChessBase"]
[SourceQuality "1"]
[TimeControl "5400+30"]

1. e4 {[%emt 0:00:00]} c5 {[%emt 0:00:00]} 2. Nf3 {[%emt 0:00:00]} e6 {[%emt 0:00:00]} 3. d4 {[%emt 0:00:00]} cxd4 {[%emt 0:00:01]} 4. Nxd4 {[%emt 0:00:00]} a6 {[%emt 0:00:16]} 5. c4 {[%emt 0:00:20]} Qc7 {[%emt 0:00:33]} 6. Nc3 {[%emt 0:00:16]} Nf6 {[%emt 0:00:22]} 7. a3 {[%emt 0:00:03]} d6 {[%emt 0:00:55]} 8. Be2 {[%emt 0:00:07]} Nbd7 {[%emt 0:00:46]} 9. Be3 {[%emt 0:00:05]} b6 {[%emt 0:00:27]} 10. O-O {[%emt 0:00:16]} Bb7 {[%emt 0:00:18]} 11. f3 {[%emt 0:00:04]} Rc8 {[%emt 0:00:48]} 12. Qd2 {[%emt 0:01:43]} Be7 {[%emt 0:00:34]} 13. Rfc1 {[%emt 0:00:13]} Qb8 {[%emt 0:01:34]} 14. a4 {[%emt 0:01:34]} Bd8 {[%emt 0:04:35]} 15. Bf1 {[%emt 0:43:12]} O-O {[%emt 0:03:41]} 16. Qf2 {[%emt 0:05:57]} Re8 {[%emt 0:05:20]} 17. Rc2 {[%emt 0:15:13]} Bc7 {[%emt 0:03:03]} 18. g3 {[%emt 0:00:15]} Qa8 {[%emt 0:06:43]} 19. Rac1 {[%emt 0:03:31]} Ne5 {[%emt 0:04:24]} 20. h3 {[%emt 0:14:54]} Nfd7 {[%emt 0:08:15]} 21. Rd1 {[%emt 0:04:41]} Nf6 {[%emt 0:06:39]} 22. b3 {[%emt 0:00:23]} Ned7 {[%emt 0:05:04]} 23. Rcd2 {[%emt 0:00:30]} Qb8 {[%emt 0:03:46]} 24. Nde2 {[%emt 0:00:28]} Nc5 {[%emt 0:08:49]} 25. Rb2 {[%emt 0:02:09]} Bc6 {[%emt 0:03:57]} 26. g4 {[%emt 0:00:28]} h6 {[%emt 0:01:56]} 27. Bg2 {[%emt 0:00:01]} Qa8 {[%emt 0:01:36]} 28. h4 {[%emt 0:00:20]} Nfd7 {[%emt 0:04:23]} 29. Nd4 {[%emt 0:00:06]} Ne5 {[%emt 0:01:08]} 30. Qe2 {[%emt 0:00:09]} Bb7 {[%emt 0:00:58]} 31. h5 {[%emt 0:00:23]} Nc6 {[%emt 0:04:46]} 32. Nc2 {[%emt 0:00:03]} Rcd8 {[%emt 0:00:52]} 33. b4 {[%emt 0:01:06]} Nd7 {[%emt 0:00:12]} 34. b5 {[%emt 0:00:23]} Na5 {[%emt 0:01:09]} 35. bxa6 {[%emt 0:00:24]} Bxa6 {[%emt 0:01:41]} 36. Nb5 {[%emt 0:00:02]} Bb8 {[%emt 0:00:56]} 37. Nb4 {[%emt 0:02:04]} Nc5 {[%emt 0:03:35]} 38. Ra2 {[%emt 0:01:03]} Bb7 {[%emt 0:02:17]} 39. g5 {[%emt 0:04:20]} hxg5 {[%emt 0:00:54]} 40. Bxg5 {[%emt 0:00:02]} Rd7 {[%emt 0:01:25]} 41. Bh4 {[%emt 0:00:33]} Nc6 {[%emt 0:03:30]} 42. Nxc6 {[%emt 0:00:02]} Bxc6 {[%emt 0:00:11]} 43. Bh3 {[%emt 0:00:25]} Qb7 {[%emt 0:02:42]} 44. Qe1 {[%emt 0:00:17]} Bc7 {[%emt 0:02:07]} 45. Rg2 {[%emt 0:00:03]} Bd8 {[%emt 0:02:06]} 46. Nxd6 {[%emt 0:00:17]} Bxh4 {[%emt 0:00:09]} 47. Qxh4 {[%emt 0:00:06]} Qc7 {[%emt 0:02:53]} 48. Qf6 {[%emt 0:00:11]} 1-0

[Event "84th ESP-ch 2019"]
[Site "Marbella"]
[Date "2019.11.20"]
[Round "5.21"]
[White "Hernandez Roldan, Miguel"]
[Black "Valmana Canto, Jaime"]
[Result "0-1"]
[ECO "B30"]
[WhiteElo "2229"]
[BlackElo "2416"]
[Annotator "ChessBase"]
[PlyCount "63"]
[EventDate "2019.11.16"]
[EventType "swiss"]
[EventCountry "ESP"]
[SourceTitle "playchess.com"]
[Source "ChessBase"]
[SourceQuality "1"]
[TimeControl "5400+30"]

1. e4 {[%emt 0:00:00]} c5 {[%emt 0:05:11]} 2. Nf3 {[%emt 0:00:00]} Nc6 {[%emt 0:00:12]} 3. Bb5 {[%emt 0:00:03]} Nf6 {[%emt 0:00:08]} 4. Bxc6 {[%emt 0:00:43]} dxc6 {[%emt 0:00:04]} 5. d3 {[%emt 0:09:04]} Bg4 {[%emt 0:02:24]} 6. Nc3 {[%emt 0:06:54]} e5 {[%emt 0:00:20]} 7. h3 {[%emt 0:01:12]} Bxf3 {[%emt 0:00:16]} 8. Qxf3 {[%emt 0:00:02]} Qc7 {[%emt 0:02:20]} 9. O-O {[%emt 0:06:30]} Bd6 {[%emt 0:03:53]} 10. Be3 {[%emt 0:04:27]} O-O {[%emt 0:01:44]} 11. Ne2 {[%emt 0:05:30]} Rfe8 {[%emt 0:01:04]} 12. g4 {[%emt 0:00:52]} Nd7 {[%emt 0:00:13]} 13. Qg3 {[%emt 0:03:08]} Nf8 {[%emt 0:00:42]} 14. f4 {[%emt 0:04:29]} exf4 {[%emt 0:00:09]} 15. Bxf4 {[%emt 0:00:10]} Bxf4 {[%emt 0:00:07]} 16. Rxf4 {[%emt 0:04:45]} Ng6 {[%emt 0:03:03]} 17. Rf2 {[%emt 0:00:33]} Qe7 {[%emt 0:02:53]} 18. Raf1 {[%emt 0:01:11]} f6 {[%emt 0:00:10]} 19. b3 {[%emt 0:08:15]} a5 {[%emt 0:00:09]} 20. a4 {[%emt 0:05:58]} b5 {[%emt 0:00:43]} 21. Nc3 {[%emt 0:00:33]} c4 {[%emt 0:06:39]} 22. axb5 {[%emt 0:01:28]} cxb3 {[%emt 0:01:02]} 23. cxb3 {[%emt 0:02:29]} Qb4 {[%emt 0:11:11]} 24. Rc1 {[%emt 0:00:40]} cxb5 {[%emt 0:00:11]} 25. Nd5 {[%emt 0:01:22]} Qd4 {[%emt 0:03:43]} 26. Qd6 {[%emt 0:15:13]} Rad8 {[%emt 0:02:28]} 27. Qg3 {[%emt 0:01:00]} Ne5 {[%emt 0:00:59]} 28. Rd1 {[%emt 0:01:05]} a4 {[%emt 0:03:10]} 29. bxa4 {[%emt 0:00:50]} bxa4 {[%emt 0:00:10]} 30. Kg2 {[%emt 0:00:06]} a3 {[%emt 0:00:13]} 31. Ra2 {[%emt 0:00:53]} Rxd5 {[%emt 0:00:14]} 32. Raa1 0-1

[Event "84th ESP-ch 2019"]
[Site "Marbella"]
[Date "2019.11.20"]
[Round "5.22"]
[White "Garza Marco, Sergio"]
[Black "Luque Saiz, Andres"]
[Result "1-0"]
[ECO "D18"]
[WhiteElo "2400"]
[BlackElo "2140"]
[Annotator "ChessBase"]
[PlyCount "77"]
[EventDate "2019.11.16"]
[EventType "swiss"]
[EventCountry "ESP"]
[SourceTitle "playchess.com"]
[Source "ChessBase"]
[SourceQuality "1"]
[TimeControl "5400+30"]

1. d4 {[%emt 0:00:00]} d5 {[%emt 0:00:00]} 2. c4 {[%emt 0:00:00]} c6 {[%emt 0:00:00]} 3. Nf3 {[%emt 0:00:00]} Nf6 {[%emt 0:00:03]} 4. Nc3 {[%emt 0:00:00]} dxc4 {[%emt 0:00:24]} 5. a4 {[%emt 0:00:09]} Bf5 {[%emt 0:00:21]} 6. e3 {[%emt 0:00:18]} e6 {[%emt 0:00:56]} 7. Bxc4 {[%emt 0:00:06]} Bb4 {[%emt 0:00:17]} 8. O-O {[%emt 0:00:07]} Nbd7 {[%emt 0:00:20]} 9. Qe2 {[%emt 0:00:07]} O-O {[%emt 0:02:04]} 10. e4 {[%emt 0:00:24]} Bg4 {[%emt 0:04:24]} 11. Rd1 {[%emt 0:08:43]} Qc7 {[%emt 0:03:01]} 12. e5 {[%emt 0:19:50]} Nd5 {[%emt 0:01:58]} 13. Bd2 {[%emt 0:08:04]} Bxc3 {[%emt 0:11:28]} 14. bxc3 {[%emt 0:00:15]} f6 {[%emt 0:00:09]} 15. Bd3 {[%emt 0:01:44]} fxe5 {[%emt 0:09:42]} 16. Bxh7+ {[%emt 0:00:16]} Kh8 {[%emt 0:00:18]} 17. Be4 {[%emt 0:03:56]} exd4 {[%emt 0:04:49]} 18. cxd4 {[%emt 0:00:53]} N7f6 {[%emt 0:00:30]} 19. Bb1 {[%emt 0:04:46]} Nf4 {[%emt 0:04:52]} 20. Bxf4 {[%emt 0:00:08]} Qxf4 {[%emt 0:00:07]} 21. Ra3 {[%emt 0:00:58]} Nd5 {[%emt 0:08:49]} 22. h3 {[%emt 0:02:47]} Bf5 {[%emt 0:01:43]} 23. Ne5 {[%emt 0:01:21]} Qh6 {[%emt 0:07:01]} 24. Qb2 {[%emt 0:01:59]} Nf4 {[%emt 0:05:49]} 25. Qxb7 {[%emt 0:03:08]} Rab8 {[%emt 0:06:32]} 26. Qxb8 {[%emt 0:02:14]} Rxb8 {[%emt 0:02:02]} 27. Nf7+ {[%emt 0:00:06]} Kh7 {[%emt 0:00:03]} 28. Bxf5+ {[%emt 0:00:17]} exf5 {[%emt 0:00:16]} 29. Nxh6 {[%emt 0:00:07]} Kxh6 {[%emt 0:00:12]} 30. Rf3 {[%emt 0:05:40]} g5 {[%emt 0:07:01]} 31. Kh2 {[%emt 0:00:57]} Rb4 {[%emt 0:02:08]} 32. g3 {[%emt 0:00:56]} Ne6 {[%emt 0:00:47]} 33. Rxf5 {[%emt 0:00:42]} Nxd4 {[%emt 0:04:15]} 34. Ra5 {[%emt 0:00:22]} c5 {[%emt 0:00:28]} 35. Rxa7 {[%emt 0:01:12]} Rb6 {[%emt 0:00:15]} 36. Rd7 {[%emt 0:02:21]} Rb2 {[%emt 0:02:32]} 37. Kg2 {[%emt 0:01:41]} Nf5 {[%emt 0:00:05]} 38. Rc1 {[%emt 0:00:51]} c4 {[%emt 0:00:34]} 39. Rc7 {[%emt 0:00:53]} 1-0

[Event "84th ESP-ch 2019"]
[Site "Marbella"]
[Date "2019.11.20"]
[Round "5.23"]
[White "Represa Perez, Mireya"]
[Black "Suarez Uriel, Adrian"]
[Result "0-1"]
[ECO "B31"]
[WhiteElo "2189"]
[BlackElo "2389"]
[Annotator "ChessBase"]
[PlyCount "124"]
[EventDate "2019.11.16"]
[EventType "swiss"]
[EventCountry "ESP"]
[SourceTitle "playchess.com"]
[Source "ChessBase"]
[SourceQuality "1"]
[TimeControl "5400+30"]

1. e4 {[%emt 0:00:00]} c5 {[%emt 0:00:00]} 2. Nf3 {[%emt 0:00:00]} Nc6 {[%emt 0:00:00]} 3. Bb5 {[%emt 0:00:16]} g6 {[%emt 0:00:00]} 4. Bxc6 {[%emt 0:01:22]} dxc6 {[%emt 0:00:36]} 5. d3 {[%emt 0:00:10]} Bg7 {[%emt 0:00:06]} 6. h3 {[%emt 0:00:18]} Nf6 {[%emt 0:00:05]} 7. Nc3 {[%emt 0:01:19]} Nd7 {[%emt 0:00:14]} 8. Be3 {[%emt 0:01:18]} e5 {[%emt 0:00:05]} 9. Qd2 {[%emt 0:00:34]} h6 {[%emt 0:00:06]} 10. O-O {[%emt 0:00:59]} b6 {[%emt 0:00:08]} 11. Nh2 {[%emt 0:00:37]} Nf8 {[%emt 0:00:04]} 12. f4 {[%emt 0:14:42]} exf4 {[%emt 0:00:09]} 13. Bxf4 {[%emt 0:00:06]} Ne6 {[%emt 0:00:05]} 14. Bg3 {[%emt 0:01:57]} Qg5 {[%emt 0:00:18]} 15. Qe1 {[%emt 0:00:53]} Nd4 {[%emt 0:16:09]} 16. Kh1 {[%emt 0:05:55]} Qe7 {[%emt 0:11:26]} 17. Qf2 {[%emt 0:14:54]} Be6 {[%emt 0:06:03]} 18. Rae1 {[%emt 0:05:26]} O-O-O {[%emt 0:01:01]} 19. Nd1 {[%emt 0:10:55]} g5 {[%emt 0:10:19]} 20. Ne3 {[%emt 0:02:20]} Rhe8 {[%emt 0:14:07]} 21. c3 {[%emt 0:02:48]} Nb5 {[%emt 0:04:45]} 22. Nf5 {[%emt 0:02:26]} Qf8 {[%emt 0:02:04]} 23. a4 {[%emt 0:02:26]} Nc7 {[%emt 0:00:04]} 24. Ng4 {[%emt 0:01:47]} Rxd3 {[%emt 0:06:18]} 25. Nxg7 {[%emt 0:00:38]} Qxg7 {[%emt 0:00:35]} 26. Ne5 {[%emt 0:00:35]} Rxg3 {[%emt 0:01:33]} 27. Qxg3 {[%emt 0:00:08]} Kb7 {[%emt 0:00:02]} 28. Nd3 Bc4 {[%emt 0:10:32]} 29. a5 {[%emt 0:05:11]} Rd8 {[%emt 0:02:42]} 30. Rf3 {[%emt 0:01:26]} h5 {[%emt 0:02:02]} 31. axb6 {[%emt 0:01:05]} axb6 {[%emt 0:00:01]} 32. Ra1 {[%emt 0:01:40]} f6 {[%emt 0:02:33]} 33. Rd1 {[%emt 0:00:59]} Qe7 {[%emt 0:01:29]} 34. Rf2 {[%emt 0:04:17]} Ne6 {[%emt 0:02:22]} 35. Qf3 {[%emt 0:02:41]} Qc7 {[%emt 0:01:42]} 36. Qxf6 {[%emt 0:07:10]} Bxd3 {[%emt 0:00:08]} 37. Qxe6 {[%emt 0:07:24]} Bc4 {[%emt 0:00:03]} 38. Qxc4 {[%emt 0:00:35]} Rxd1+ {[%emt 0:00:03]} 39. Rf1 {[%emt 0:00:05]} b5 {[%emt 0:00:13]} 40. Qe2 {[%emt 0:00:08]} Rxf1+ {[%emt 0:00:17]} 41. Qxf1 {[%emt 0:00:04]} Qf4 {[%emt 0:03:21]} 42. Qxf4 {[%emt 0:02:13]} gxf4 {[%emt 0:00:01]} 43. Kh2 {[%emt 0:00:12]} h4 {[%emt 0:02:29]} 44. Kg1 {[%emt 0:00:01]} Kc7 {[%emt 0:00:02]} 45. Kf2 {[%emt 0:00:06]} Kd6 {[%emt 0:00:01]} 46. Kf3 {[%emt 0:00:04]} Ke5 {[%emt 0:00:02]} 47. Kg4 {[%emt 0:01:00]} Kxe4 {[%emt 0:00:05]} 48. Kxh4 {[%emt 0:00:03]} Kf5 {[%emt 0:00:52]} 49. g4+ {[%emt 0:01:39]} Ke4 {[%emt 0:00:13]} 50. g5 {[%emt 0:00:46]} f3 {[%emt 0:00:04]} 51. g6 {[%emt 0:00:03]} f2 {[%emt 0:00:03]} 52. g7 {[%emt 0:00:06]} f1=Q {[%emt 0:00:04]} 53. g8=Q {[%emt 0:00:04]} Qf2+ {[%emt 0:01:20]} 54. Kh5 {[%emt 0:00:33]} Qxb2 {[%emt 0:00:19]} 55. Qe6+ {[%emt 0:01:11]} Kd3 {[%emt 0:00:10]} 56. Qxc6 {[%emt 0:01:08]} Qe2+ {[%emt 0:00:02]} 57. Kg6 {[%emt 0:01:06]} Kc4 {[%emt 0:00:09]} 58. h4 {[%emt 0:00:34]} Qg4+ {[%emt 0:00:06]} 59. Kf6 {[%emt 0:00:19]} Qxh4+ {[%emt 0:00:05]} 60. Kf7 {[%emt 0:00:14]} Qh5+ {[%emt 0:00:40]} 61. Ke7 {[%emt 0:00:13]} Qe5+ {[%emt 0:00:04]} 62. Kf7 {[%emt 0:00:17]} Qd5+ {[%emt 0:00:04]} 0-1

[Event "84th ESP-ch 2019"]
[Site "Marbella"]
[Date "2019.11.20"]
[Round "5.24"]
[White "Pindado Campos, Raul"]
[Black "Bernabeu Lopez, Carlos Javier"]
[Result "1/2-1/2"]
[ECO "E62"]
[WhiteElo "2100"]
[BlackElo "2366"]
[Annotator "ChessBase"]
[PlyCount "110"]
[EventDate "2019.11.16"]
[EventType "swiss"]
[EventCountry "ESP"]
[SourceTitle "playchess.com"]
[Source "ChessBase"]
[SourceQuality "1"]
[TimeControl "5400+30"]

1. d4 {[%emt 0:00:00]} g6 {[%emt 0:00:00]} 2. c4 {[%emt 0:00:00]} Bg7 {[%emt 0:00:00]} 3. Nf3 {[%emt 0:00:12]} Nf6 {[%emt 0:00:00]} 4. g3 {[%emt 0:00:08]} O-O {[%emt 0:00:00]} 5. Bg2 {[%emt 0:00:05]} d6 {[%emt 0:00:00]} 6. O-O {[%emt 0:00:07]} Nc6 {[%emt 0:00:00]} 7. Nc3 {[%emt 0:00:13]} Bg4 {[%emt 0:00:02]} 8. h3 {[%emt 0:07:44]} Bxf3 {[%emt 0:00:15]} 9. Bxf3 {[%emt 0:00:08]} Nd7 {[%emt 0:00:03]} 10. e3 {[%emt 0:11:37]} e5 {[%emt 0:00:35]} 11. Ne2 {[%emt 0:02:35]} exd4 {[%emt 0:08:36]} 12. exd4 {[%emt 0:04:43]} Qf6 {[%emt 0:03:07]} 13. Bg2 {[%emt 0:14:15]} Nxd4 {[%emt 0:01:51]} 14. Bxb7 {[%emt 0:07:02]} Rab8 {[%emt 0:01:19]} 15. Bg2 {[%emt 0:02:27]} Nc5 {[%emt 0:20:45]} 16. Nc3 {[%emt 0:09:57]} Qe6 {[%emt 0:02:00]} 17. Nd5 {[%emt 0:13:08]} Ne2+ {[%emt 0:11:28]} 18. Kh2 {[%emt 0:00:15]} Nxc1 {[%emt 0:01:29]} 19. Rxc1 {[%emt 0:00:13]} Rxb2 {[%emt 0:09:01]} 20. Nxc7 {[%emt 0:02:41]} Qf5 {[%emt 0:01:57]} 21. Nd5 {[%emt 0:10:40]} Re8 {[%emt 0:02:02]} 22. Ne3 {[%emt 0:01:15]} Qd3 {[%emt 0:03:54]} 23. Qf3 {[%emt 0:00:14]} Qe2 {[%emt 0:03:22]} 24. Qc6 {[%emt 0:03:14]} Rd8 {[%emt 0:05:24]} 25. Rce1 {[%emt 0:00:41]} Qh5 {[%emt 0:01:17]} 26. Nd5 {[%emt 0:02:13]} Ne6 {[%emt 0:03:01]} 27. f4 {[%emt 0:03:42]} h6 {[%emt 0:03:11]} 28. f5 {[%emt 0:01:20]} Nd4 {[%emt 0:00:36]} 29. Ne7+ {[%emt 0:02:26]} Kh7 {[%emt 0:01:02]} 30. Qd5 {[%emt 0:00:01]} gxf5 {[%emt 0:03:37]} 31. Nxf5 {[%emt 0:01:12]} Nxf5 {[%emt 0:07:19]} 32. Rxf5 {[%emt 0:00:01]} Qg6 {[%emt 0:00:15]} 33. Rxf7 {[%emt 0:00:54]} Kh8 {[%emt 0:00:54]} 34. Qf5 {[%emt 0:00:56]} Qxf5 {[%emt 0:00:22]} 35. Rxf5 {[%emt 0:00:01]} Rxa2 {[%emt 0:01:25]} 36. h4 {[%emt 0:00:16]} Rg8 {[%emt 0:01:24]} 37. Kh3 {[%emt 0:00:41]} Be5 {[%emt 0:00:07]} 38. Re3 {[%emt 0:00:28]} Rc8 {[%emt 0:02:05]} 39. Bd5 {[%emt 0:00:39]} a5 {[%emt 0:03:09]} 40. Ref3 {[%emt 0:00:31]} Rc2 {[%emt 0:00:41]} 41. Rf7 {[%emt 0:00:56]} Rc3 {[%emt 0:00:14]} 42. Rxc3 {[%emt 0:00:31]} Bxc3 {[%emt 0:00:02]} 43. Ra7 {[%emt 0:00:16]} Re8 {[%emt 0:00:38]} 44. Ra8 {[%emt 0:00:43]} Rxa8 {[%emt 0:00:06]} 45. Bxa8 {[%emt 0:00:01]} a4 {[%emt 0:00:48]} 46. Be4 {[%emt 0:00:01]} Kg7 {[%emt 0:00:19]} 47. Kg4 {[%emt 0:01:35]} Kf6 {[%emt 0:00:11]} 48. Kf3 {[%emt 0:00:19]} Ke5 {[%emt 0:00:37]} 49. Ke3 {[%emt 0:00:21]} Be1 {[%emt 0:00:18]} 50. h5 {[%emt 0:00:41]} Bxg3 {[%emt 0:00:13]} 51. Bb1 {[%emt 0:00:22]} a3 {[%emt 0:00:32]} 52. Kd3 {[%emt 0:00:24]} Kf6 {[%emt 0:02:21]} 53. Kc3 {[%emt 0:00:19]} a2 {[%emt 0:00:23]} 54. Bxa2 {[%emt 0:00:03]} Kg5 {[%emt 0:00:05]} 55. c5 {[%emt 0:00:17]} dxc5 {[%emt 0:00:20]} 1/2-1/2